[Event "9th Sharjah Cup Women 2018"]
[Site "Sharjah"]
[Date "2018.12.18"]
[Round "7"]
[White "Novikova, Margarita"]
[Black "Mkrtchian, Lilit"]
[Result "0-1"]
[ECO "A47"]
[WhiteElo "2017"]
[BlackElo "2392"]
[Annotator "NA"]
[PlyCount "118"]
[EventDate "2018.12.14"]
[EventType "swiss"]
[EventCountry "UAE"]
[SourceTitle "playchess.com"]
[Source "ChessBase"]
[SourceQuality "1"]
[TimeControl "5400+30"]

1. d4 Nf6 {[%emt 0:00:02]} 2. Nf3 {[%emt 0:00:12]} b6 {[%emt 0:00:44]} 3. Bf4 {[%emt 0:01:04]} Bb7 {[%emt 0:00:36]} 4. e3 {[%emt 0:04:36]} d6 {[%emt 0:01:55]} 5. Nbd2 {[%emt 0:03:49]} Nh5 {[%emt 0:02:25]} 6. Bg5 {[%emt 0:01:39]} h6 {[%emt 0:00:14]} 7. Bh4 {[%emt 0:00:04]} g5 {[%emt 0:00:17]} 8. Ng1 {[%emt 0:01:37]} Ng7 {[%emt 0:07:39]} 9. Bg3 {[%emt 0:03:06]} Nf5 {[%emt 0:00:19]} 10. Qh5 {[%emt 0:05:22]} e6 {[%emt 0:02:11]} 11. c3 {[%emt 0:09:58]} Nd7 {[%emt 0:01:16]} 12. e4 {[%emt 0:01:20]} Nf6 {[%emt 0:02:11]} 13. Qe2 {[%emt 0:00:39]} Nxg3 $11 {[%emt 0:00:20]} 14. hxg3 {[%emt 0:00:26]} Bg7 {[%emt 0:00:15]} 15. O-O-O {[%emt 0:10:57]} Qe7 {[%emt 0:01:55]} 16. Qb5+ {[%emt 0:12:52]} Qd7 {[%emt 0:05:47]} 17. f3 {[%emt 0:08:47]} Qxb5 {[%emt 0:01:52]} 18. Bxb5+ {[%emt 0:01:02]} Ke7 {[%emt 0:00:11]} 19. g4 {[%emt 0:01:11]} h5 {[%emt 0:08:56]} 20. gxh5 {[%emt 0:02:35]} Nxh5 {[%emt 0:02:25]} 21. Ne2 {[%emt 0:03:08]} Rac8 {[%emt 0:03:13]} 22. Rhe1 {[%emt 0:12:44]} c5 {[%emt 0:05:48]} 23. Nf1 {[%emt 0:03:51]} a6 {[%emt 0:10:20]} 24. Ba4 {[%emt 0:00:00]} cxd4 {[%emt 0:00:42]} 25. Nxd4 {[%emt 0:00:12]} Nf4 {[%emt 0:01:15]} 26. g3 {[%emt 0:01:24]} Ng6 {[%emt 0:02:58]} 27. Kb1 {[%emt 0:02:18]} Be5 {[%emt 0:00:51]} 28. Ne3 {[%emt 0:03:10]} Rh3 {[%emt 0:02:44]} 29. Rg1 {[%emt 0:00:19]} Kf8 {[%emt 0:10:18]} 30. Ne2 {[%emt 0:00:49]} Rh2 {[%emt 0:01:08]} 31. Rde1 {[%emt 0:00:34]} Rf2 {[%emt 0:01:35]} 32. Rgf1 {[%emt 0:01:33]} Rxf3 {[%emt 0:01:10]} 33. Rxf3 {[%emt 0:01:43]} Bxe4+ {[%emt 0:00:05]} 34. Bc2 {[%emt 0:00:49]} Bxf3 {[%emt 0:00:04]} 35. Bxg6 {[%emt 0:00:14]} Bxe2 {[%emt 0:00:31]} 36. Be4 {[%emt 0:02:31]} Bb5 {[%emt 0:00:50]} 37. g4 {[%emt 0:00:24]} Kg7 {[%emt 0:02:43]} 38. a4 {[%emt 0:00:37]} Bxa4 39. Bb7 Rh8 {[%emt 0:04:17]} 40. Bxa6 {[%emt 0:00:08]} Bg3 {[%emt 0:00:36]} 41. Rf1 {[%emt 0:01:12]} Bc6 {[%emt 0:01:53]} 42. Bd3 {[%emt 0:00:20]} Bf4 {[%emt 0:02:44]} 43. Nc2 {[%emt 0:00:38]} Rh3 {[%emt 0:01:05]} 44. Be2 {[%emt 0:00:16]} Be4 {[%emt 0:00:23]} 45. Bd1 {[%emt 0:00:02]} Rh2 {[%emt 0:00:32]} 46. b4 {[%emt 0:00:21]} Be5 {[%emt 0:02:37]} 47. Kb2 {[%emt 0:00:31]} Rd2 {[%emt 0:01:03]} 48. Re1 {[%emt 0:00:41]} d5 {[%emt 0:00:53]} 49. Kc1 {[%emt 0:00:36]} Bxc3 {[%emt 0:02:52]} 50. Re3 {[%emt 0:00:00]} Bxc2 {[%emt 0:00:14]} 51. Bxc2 {[%emt 0:01:02]} Bxb4 {[%emt 0:00:10]} 52. Rb3 {[%emt 0:00:25]} Rd4 {[%emt 0:01:05]} 53. Bd1 {[%emt 0:00:11]} e5 {[%emt 0:00:35]} 54. Rf3 {[%emt 0:00:12]} Rxg4 {[%emt 0:02:01]} 55. Rf5 {[%emt 0:00:01]} Rc4+ {[%emt 0:00:10]} 56. Kb1 {[%emt 0:00:12]} f6 {[%emt 0:00:06]} 57. Bb3 {[%emt 0:00:19]} Rf4 {[%emt 0:01:16]} 58. Rxf4 {[%emt 0:00:13]} exf4 {[%emt 0:00:09]} 59. Bxd5 {[%emt 0:00:03]} f5 {[%emt 0:00:05]} 0-1

[Event "9th Sharjah Cup Women 2018"]
[Site "Sharjah"]
[Date "2018.12.18"]
[Round "7"]
[White "Alattar, Ghayda M."]
[Black "Soyunlu, Narmin"]
[Result "0-1"]
[ECO "C54"]
[WhiteElo "1944"]
[BlackElo "2078"]
[Annotator "NA"]
[PlyCount "68"]
[EventDate "2018.12.14"]
[EventType "swiss"]
[EventCountry "UAE"]
[SourceTitle "playchess.com"]
[Source "ChessBase"]
[SourceQuality "1"]
[TimeControl "5400+30"]

1. e4 {[%emt 0:00:00]} e5 {[%emt 0:00:00]} 2. Nf3 {[%emt 0:00:00]} Nc6 {[%emt 0:00:05]} 3. d4 {[%emt 0:00:00]} exd4 {[%emt 0:00:04]} 4. Bc4 {[%emt 0:00:00]} Bc5 $11 {[%emt 0:00:44] LiveBook: 403 Games} 5. c3 {[%emt 0:00:34]} Nf6 {[%emt 0:01:00]} 6. e5 {[%emt 0:02:33]} d5 {[%emt 0:01:46]} 7. Bb5 {[%emt 0:01:29]} Ne4 {[%emt 0:00:49]} 8. Nxd4 {[%emt 0:02:07]} O-O {[%emt 0:02:34]} 9. Bxc6 {[%emt 0:00:06]} bxc6 {[%emt 0:01:12]} 10. O-O {[%emt 0:00:03]} Re8 {[%emt 0:15:25]} 11. Be3 {[%emt 0:09:05]} Bd7 {[%emt 0:04:18]} 12. f3 {[%emt 0:04:22]} Nd6 {[%emt 0:04:53]} 13. f4 {[%emt 0:07:03]} f6 {[%emt 0:06:35]} 14. Kh1 {[%emt 0:12:48]} Bb6 {[%emt 0:09:28]} 15. Qh5 {[%emt 0:04:46]} Nc4 {[%emt 0:02:54]} 16. Bf2 {[%emt 0:16:21]} fxe5 {[%emt 0:03:35]} 17. Bh4 {[%emt 0:00:58]} Qc8 {[%emt 0:00:14]} 18. fxe5 {[%emt 0:00:12]} Nxe5 {[%emt 0:01:21]} 19. h3 {[%emt 0:09:52]} Bxh3 {[%emt 0:08:44]} 20. Bf6 {[%emt 0:06:28]} Bg4 {[%emt 0:03:02]} 21. Qg5 {[%emt 0:00:58]} Ng6 {[%emt 0:00:06]} 22. Bxg7 {[%emt 0:07:37]} Kxg7 {[%emt 0:01:34]} 23. Nd2 {[%emt 0:03:43]} Re5 {[%emt 0:05:16]} 24. Qf6+ {[%emt 0:01:13]} Kh6 {[%emt 0:00:01]} 25. N2f3 {[%emt 0:01:43]} Rh5+ {[%emt 0:00:10]} 26. Kg1 {[%emt 0:00:17]} Qd8 {[%emt 0:07:08]} 27. Ne5 {[%emt 0:02:05]} Rxe5 {[%emt 0:00:36]} 28. Qxc6 Bd7 {[%emt 0:01:03]} 29. Qb7 {[%emt 0:01:55]} Rb8 {[%emt 0:00:50]} 30. Qa6 {[%emt 0:00:06]} Bb5 {[%emt 0:00:39]} 31. Qxb5 {[%emt 0:01:09]} Bxd4+ {[%emt 0:00:07]} 32. cxd4 {[%emt 0:00:03]} Rxb5 {[%emt 0:00:08]} 33. dxe5 {[%emt 0:00:10]} Nxe5 {[%emt 0:00:37]} 34. Rae1 {[%emt 0:00:27]} Qg5 {[%emt 0:00:29]} 0-1

[Event "9th Sharjah Cup Women 2018"]
[Site "Sharjah"]
[Date "2018.12.18"]
[Round "7"]
[White "Nass, Sara"]
[Black "Berke, Ana"]
[Result "0-1"]
[ECO "B56"]
[WhiteElo "1840"]
[BlackElo "2151"]
[Annotator "NA"]
[PlyCount "50"]
[EventDate "2018.12.14"]
[EventType "swiss"]
[EventCountry "UAE"]
[SourceTitle "playchess.com"]
[Source "ChessBase"]
[SourceQuality "1"]
[TimeControl "5400+30"]

1. e4 {[%emt 0:00:00]} c5 {[%emt 0:00:00]} 2. Nf3 {[%emt 0:00:00]} d6 {[%emt 0:00:00]} 3. d4 {[%emt 0:00:00]} cxd4 {[%emt 0:00:00]} 4. Nxd4 {[%emt 0:00:00]} Nf6 {[%emt 0:00:00]} 5. Nc3 {[%emt 0:00:17]} Nc6 {[%emt 0:00:00]} 6. Be3 {[%emt 0:01:01]} Ng4 $11 {[%emt 0:00:00] LiveBook: 420 Games} 7. Bg5 {[%emt 0:03:28]} h6 {[%emt 0:01:18]} 8. Bh4 {[%emt 0:06:15]} g5 {[%emt 0:00:06]} 9. Bg3 {[%emt 0:04:48]} Bg7 {[%emt 0:00:06]} 10. Nf5 {[%emt 0:09:17]} Bxf5 {[%emt 0:04:08]} 11. exf5 {[%emt 0:00:09]} Qa5 {[%emt 0:01:46]} 12. Qd2 {[%emt 0:05:12]} Qxf5 {[%emt 0:14:32]} 13. f3 {[%emt 0:06:08]} Qe6+ {[%emt 0:02:50]} 14. Kd1 {[%emt 0:15:25]} Ne3+ {[%emt 0:00:53]} 15. Kc1 {[%emt 0:00:13]} Nxf1 {[%emt 0:05:25]} 16. Rxf1 {[%emt 0:00:10]} O-O {[%emt 0:00:40]} 17. Nd5 {[%emt 0:03:18]} Rac8 {[%emt 0:01:57]} 18. Re1 {[%emt 0:01:12]} Qd7 {[%emt 0:01:30]} 19. f4 {[%emt 0:01:53]} g4 {[%emt 0:00:59]} 20. Bh4 {[%emt 0:04:29]} Rfe8 {[%emt 0:03:03]} 21. c3 {[%emt 0:03:52]} b5 {[%emt 0:06:48]} 22. Kd1 {[%emt 0:01:41]} b4 {[%emt 0:05:52]} 23. cxb4 {[%emt 0:01:51]} Nd4 {[%emt 0:04:02]} 24. Nc3 {[%emt 0:07:26]} Rc4 {[%emt 0:11:45]} 25. b5 {[%emt 0:03:36]} Nf3 {[%emt 0:01:17]} 0-1

[Event "9th Sharjah Cup Women 2018"]
[Site "Sharjah"]
[Date "2018.12.18"]
[Round "7"]
[White "Mork, Ramona"]
[Black "Hallaeva, Bahar"]
[Result "0-1"]
[ECO "C44"]
[WhiteElo "1755"]
[BlackElo "2133"]
[Annotator "NA"]
[PlyCount "218"]
[EventDate "2018.12.14"]
[EventType "swiss"]
[EventCountry "UAE"]
[SourceTitle "playchess.com"]
[Source "ChessBase"]
[SourceQuality "1"]
[TimeControl "5400+30"]

1. e4 {[%emt 0:00:00]} e5 {[%emt 0:00:00]} 2. Nf3 {[%emt 0:00:00]} Nc6 {[%emt 0:00:00]} 3. d4 {[%emt 0:00:00]} exd4 {[%emt 0:00:00]} 4. Nxd4 {[%emt 0:00:00]} Nf6 {[%emt 0:00:00]} 5. Nxc6 {[%emt 0:00:00]} bxc6 {[%emt 0:00:00]} 6. Bd3 {[%emt 0:00:12]} d5 {[%emt 0:00:00]} 7. exd5 {[%emt 0:00:11]} cxd5 {[%emt 0:00:01]} 8. h3 {[%emt 0:01:39]} Be7 {[%emt 0:01:01]} 9. O-O {[%emt 0:00:18]} O-O {[%emt 0:00:17]} 10. b3 {[%emt 0:01:00]} c5 {[%emt 0:01:13]} 11. Nd2 {[%emt 0:02:53]} Bb7 {[%emt 0:00:28]} 12. Re1 {[%emt 0:03:08]} Qc7 {[%emt 0:07:25]} 13. Bb2 {[%emt 0:08:09]} a6 {[%emt 0:08:28]} 14. Be5 {[%emt 0:04:08]} Qc6 {[%emt 0:01:01]} 15. Qf3 {[%emt 0:04:53]} Rfe8 {[%emt 0:07:55]} 16. Re2 {[%emt 0:10:20]} Nd7 {[%emt 0:07:56]} 17. Bb2 {[%emt 0:12:34]} Bf6 {[%emt 0:01:21]} 18. Bxf6 {[%emt 0:01:31]} Nxf6 {[%emt 0:02:42]} 19. Rae1 {[%emt 0:01:54]} Rxe2 {[%emt 0:00:53]} 20. Rxe2 {[%emt 0:01:10]} Re8 {[%emt 0:01:02]} 21. Rxe8+ {[%emt 0:04:54]} Qxe8 {[%emt 0:00:33]} 22. Qe3 {[%emt 0:02:53]} Qxe3 {[%emt 0:08:29]} 23. fxe3 {[%emt 0:00:07]} Kf8 {[%emt 0:00:13]} 24. Kf2 {[%emt 0:03:30]} Ke7 {[%emt 0:00:12]} 25. c4 {[%emt 0:06:23]} h6 {[%emt 0:06:27]} 26. a3 {[%emt 0:03:23]} dxc4 {[%emt 0:09:10]} 27. Nxc4 {[%emt 0:04:34]} Ne4+ {[%emt 0:02:37]} 28. Bxe4 {[%emt 0:06:11]} Bxe4 {[%emt 0:00:22]} 29. Nd2 {[%emt 0:01:04]} Bd5 {[%emt 0:00:14]} 30. e4 {[%emt 0:02:30]} Be6 {[%emt 0:01:58]} 31. b4 {[%emt 0:03:27]} Kd6 {[%emt 0:11:26]} 32. Ke3 {[%emt 0:01:25]} Ba2 {[%emt 0:00:50]} 33. Kd3 {[%emt 0:02:40]} Kc6 {[%emt 0:00:37]} 34. Kc3 {[%emt 0:05:29]} Kb5 {[%emt 0:01:56]} 35. h4 {[%emt 0:01:33]} h5 {[%emt 0:06:42]} 36. g3 {[%emt 0:00:30]} Be6 {[%emt 0:02:49]} 37. Nf3 {[%emt 0:01:24]} Bg4 {[%emt 0:05:27]} 38. Ne5 {[%emt 0:01:42]} Be6 {[%emt 0:00:40]} 39. Nf3 {[%emt 0:00:18]} Kc6 {[%emt 0:04:13]} 40. Ne5+ {[%emt 0:00:50]} Kd6 {[%emt 0:01:11]} 41. Nc4+ {[%emt 0:00:36]} Kc6 {[%emt 0:00:08]} 42. Ne5+ {[%emt 0:00:11]} Kb5 {[%emt 0:00:09]} 43. Nf3 {[%emt 0:00:24]} Bg4 {[%emt 0:01:49]} 44. Ne5 {[%emt 0:00:13]} Be6 {[%emt 0:00:50]} 45. Nf3 {[%emt 0:00:08]} Bd7 {[%emt 0:00:34]} 46. Ne5 {[%emt 0:01:32]} Be8 {[%emt 0:00:52]} 47. Nf3 {[%emt 0:00:14]} Bc6 {[%emt 0:00:38]} 48. Nd2 {[%emt 0:00:45]} cxb4+ {[%emt 0:00:28]} 49. axb4 {[%emt 0:00:09]} f6 {[%emt 0:00:14]} 50. Nc4 {[%emt 0:00:58]} Bd7 {[%emt 0:00:35]} 51. Ne3 {[%emt 0:00:34]} Kc6 {[%emt 0:00:19]} 52. Kd4 {[%emt 0:00:33]} Kb5 {[%emt 0:00:25]} 53. Kc3 {[%emt 0:00:07]} Kc6 {[%emt 0:00:57]} 54. Kd4 {[%emt 0:00:05]} Kd6 {[%emt 0:00:17]} 55. Nc4+ {[%emt 0:01:35]} Ke6 {[%emt 0:00:27]} 56. Ne3 {[%emt 0:00:18]} Bb5 {[%emt 0:00:36]} 57. Ng2 {[%emt 0:00:35]} g5 {[%emt 0:00:39]} 58. Ne3 {[%emt 0:00:28]} Be2 {[%emt 0:00:14]} 59. Nd5 {[%emt 0:00:37]} Bf1 {[%emt 0:00:38]} 60. Nc7+ {[%emt 0:00:22]} Kd7 {[%emt 0:00:19]} 61. Nd5 {[%emt 0:00:14]} Ke6 {[%emt 0:00:06]} 62. Nc7+ {[%emt 0:00:05]} Ke7 {[%emt 0:00:15]} 63. Nd5+ {[%emt 0:00:13]} Kf7 {[%emt 0:00:13]} 64. Kc5 {[%emt 0:01:06]} Bd3 {[%emt 0:00:12]} 65. Kd4 {[%emt 0:00:09]} Be2 {[%emt 0:00:09]} 66. Kc5 {[%emt 0:00:25]} Ke6 {[%emt 0:00:16]} 67. Kd4 {[%emt 0:00:10]} Kf7 {[%emt 0:00:25]} 68. Kc5 {[%emt 0:00:07]} Bf1 {[%emt 0:00:58]} 69. Kd4 {[%emt 0:01:11]} Kg6 {[%emt 0:00:39]} 70. Ne7+ {[%emt 0:00:28]} Kg7 {[%emt 0:00:16]} 71. Nd5 {[%emt 0:00:23]} Kf7 {[%emt 0:00:12]} 72. Ne3 {[%emt 0:00:41]} Be2 {[%emt 0:00:28]} 73. Nd5 {[%emt 0:00:31]} Bg4 {[%emt 0:01:51]} 74. Nc7 {[%emt 0:00:34]} Be2 {[%emt 0:01:04]} 75. Kc5 {[%emt 0:01:01]} Bd3 {[%emt 0:00:21]} 76. Kd4 {[%emt 0:00:15]} Bf1 {[%emt 0:00:14]} 77. Kc5 {[%emt 0:00:26]} Bd3 {[%emt 0:00:56]} 78. Kd4 {[%emt 0:00:04]} Bf1 {[%emt 0:00:06]} 79. Kc5 {[%emt 0:00:05]} Ke7 {[%emt 0:00:33]} 80. Nd5+ {[%emt 0:00:45]} Ke6 {[%emt 0:00:15]} 81. Kd4 {[%emt 0:01:13]} Be2 {[%emt 0:00:42]} 82. Nc7+ {[%emt 0:00:17]} Kf7 {[%emt 0:00:10]} 83. Kc5 {[%emt 0:00:27]} Kg6 {[%emt 0:01:07]} 84. Nd5 {[%emt 0:01:18]} Bf3 {[%emt 0:00:54]} 85. Kd4 {[%emt 0:00:11]} Bg4 {[%emt 0:00:20]} 86. Nc7 {[%emt 0:00:27]} Be2 {[%emt 0:00:32]} 87. Nd5 {[%emt 0:00:21]} Kg7 {[%emt 0:00:27]} 88. Ke3 {[%emt 0:00:33]} Bg4 {[%emt 0:00:32]} 89. Nc7 {[%emt 0:00:14]} Bc8 {[%emt 0:00:04]} 90. Kd4 {[%emt 0:00:45]} Kf7 {[%emt 0:00:21]} 91. Kc5 {[%emt 0:00:42]} Bb7 {[%emt 0:00:11]} 92. Kb6 {[%emt 0:00:46]} Bxe4 {[%emt 0:00:07]} 93. Nxa6 {[%emt 0:00:17]} gxh4 {[%emt 0:00:32]} 94. gxh4 {[%emt 0:00:05]} f5 {[%emt 0:00:52]} 95. Kc5 {[%emt 0:00:23]} Bb7 {[%emt 0:00:34]} 96. b5 {[%emt 0:01:02]} Kf6 {[%emt 0:01:28]} 97. Kd4 {[%emt 0:00:12]} f4 {[%emt 0:00:17]} 98. Nc5 {[%emt 0:00:38]} Ba8 {[%emt 0:00:04]} 99. Ne4+ {[%emt 0:00:53]} Kf5 {[%emt 0:00:15]} 100. Nf2 {[%emt 0:00:24]} Bb7 {[%emt 0:00:19]} 101. b6 {[%emt 0:00:41]} Ba6 {[%emt 0:00:58]} 102. Nd3 {[%emt 0:00:31]} Kg4 {[%emt 0:00:14]} 103. Nc5 {[%emt 0:00:33]} Bc8 {[%emt 0:00:10]} 104. Ke4 {[%emt 0:00:21]} Kg3 {[%emt 0:00:23]} 105. Ne6 {[%emt 0:00:36]} Bb7+ {[%emt 0:00:24]} 106. Kd3 {[%emt 0:00:12]} f3 {[%emt 0:00:32]} 107. Nc5 {[%emt 0:00:46]} f2 {[%emt 0:00:44]} 108. Nxb7 {[%emt 0:00:35]} f1=Q+ {[%emt 0:00:03]} 109. Kd4 {[%emt 0:00:10]} Qf2+ {[%emt 0:00:07]} 0-1

[Event "9th Sharjah Cup Women 2018"]
[Site "Sharjah"]
[Date "2018.12.18"]
[Round "7"]
[White "Al Ghafri, Wafia"]
[Black "Ovezdurdiyeva, Jemal"]
[Result "0-1"]
[ECO "E63"]
[WhiteElo "1675"]
[BlackElo "2114"]
[Annotator "NA"]
[PlyCount "32"]
[EventDate "2018.12.14"]
[EventType "swiss"]
[EventCountry "UAE"]
[SourceTitle "playchess.com"]
[Source "ChessBase"]
[SourceQuality "1"]
[TimeControl "5400+30"]

1. d4 {[%emt 0:00:00]} Nf6 {[%emt 0:00:00]} 2. Nf3 {[%emt 0:00:00]} g6 {[%emt 0:00:00]} 3. g3 {[%emt 0:00:00]} Bg7 {[%emt 0:00:00]} 4. Bg2 {[%emt 0:00:04]} O-O {[%emt 0:00:00]} 5. O-O {[%emt 0:00:25]} d6 {[%emt 0:00:04]} 6. c4 {[%emt 0:00:17]} Nc6 $14 {[%emt 0:00:10] LiveBook: 5671 Games} 7. Nc3 {[%emt 0:00:45]} a6 {[%emt 0:00:12]} 8. a4 {[%emt 0:00:52]} Na5 {[%emt 0:10:09]} 9. Nd2 {[%emt 0:11:04]} c5 {[%emt 0:01:37]} 10. dxc5 {[%emt 0:07:05]} dxc5 {[%emt 0:00:07]} 11. h3 {[%emt 0:03:52]} Be6 {[%emt 0:12:28]} 12. b3 {[%emt 0:03:17]} Qd7 {[%emt 0:00:08]} 13. g4 {[%emt 0:08:48]} Nxg4 {[%emt 0:00:23]} 14. Bb2 {[%emt 0:05:51]} Nh6 {[%emt 0:00:21]} 15. Kh2 {[%emt 0:02:55]} Rad8 {[%emt 0:00:21]} 16. Nde4 {[%emt 0:03:09]} Qc7+ {[%emt 0:00:23]} 0-1

[Event "9th Sharjah Cup Women 2018"]
[Site "Sharjah"]
[Date "2018.12.18"]
[Round "7"]
[White "Choksi, Khushi"]
[Black "Asatryan, Sona"]
[Result "0-1"]
[ECO "C21"]
[WhiteElo "1589"]
[BlackElo "2089"]
[Annotator "NA"]
[PlyCount "88"]
[EventDate "2018.12.14"]
[EventType "swiss"]
[EventCountry "UAE"]
[SourceTitle "playchess.com"]
[Source "ChessBase"]
[SourceQuality "1"]
[TimeControl "5400+30"]

1. e4 {[%emt 0:00:00]} e5 {[%emt 0:00:00]} 2. d4 {[%emt 0:00:00]} exd4 {[%emt 0:00:09]} 3. c3 {[%emt 0:00:00]} d3 {[%emt 0:01:19]} 4. Bxd3 {[%emt 0:00:00]} Nc6 {[%emt 0:04:28]} 5. Nf3 {[%emt 0:02:21]} d6 {[%emt 0:02:41]} 6. h3 {[%emt 0:08:17]} Nf6 {[%emt 0:02:24]} 7. O-O {[%emt 0:00:27]} Be7 {[%emt 0:00:55]} 8. Bf4 {[%emt 0:01:00]} h6 {[%emt 0:05:47]} 9. Nbd2 {[%emt 0:06:03]} Be6 {[%emt 0:06:37]} 10. Qe2 $14 {[%emt 0:04:01]} O-O {[%emt 0:01:58]} 11. e5 {[%emt 0:05:01]} dxe5 {[%emt 0:09:23]} 12. Nxe5 {[%emt 0:00:08]} Nxe5 {[%emt 0:06:44]} 13. Bxe5 {[%emt 0:00:10]} Nd7 {[%emt 0:03:09]} 14. Bd4 {[%emt 0:04:39]} c5 {[%emt 0:05:18]} 15. Be3 {[%emt 0:09:39]} Qb6 {[%emt 0:07:37]} 16. Nf3 {[%emt 0:12:53]} Rad8 {[%emt 0:02:06]} 17. a4 {[%emt 0:05:57]} Rfe8 {[%emt 0:02:26]} 18. Bb5 {[%emt 0:02:30]} Qc7 {[%emt 0:03:31]} 19. Bc4 {[%emt 0:01:34]} Bf6 {[%emt 0:01:45]} 20. Rad1 {[%emt 0:02:28]} Bf5 {[%emt 0:07:40]} 21. Bd3 {[%emt 0:08:52]} Bxd3 {[%emt 0:05:21]} 22. Qxd3 {[%emt 0:01:29]} Ne5 {[%emt 0:02:40]} 23. Qe2 {[%emt 0:03:24]} Qc6 {[%emt 0:01:59]} 24. Nxe5 {[%emt 0:00:59]} Bxe5 {[%emt 0:01:23]} 25. Qc4 {[%emt 0:01:27]} Bd6 {[%emt 0:01:43]} 26. b3 {[%emt 0:04:54]} a6 {[%emt 0:01:37]} 27. Rd2 {[%emt 0:03:14]} Re4 {[%emt 0:05:16]} 28. Qe2 {[%emt 0:00:11]} Rde8 {[%emt 0:00:41]} 29. Qf3 {[%emt 0:04:54]} R8e6 {[%emt 0:01:59]} 30. Rfd1 {[%emt 0:00:32]} Be7 {[%emt 0:02:36]} 31. Rd5 {[%emt 0:01:33]} c4 {[%emt 0:00:59]} 32. bxc4 {[%emt 0:03:22]} Qxc4 {[%emt 0:00:32]} 33. Rd7 {[%emt 0:00:16]} Qxa4 {[%emt 0:01:15]} 34. Rxb7 {[%emt 0:01:14]} Rf6 {[%emt 0:01:38]} 35. Qe2 {[%emt 0:01:31]} Qc6 {[%emt 0:00:46]} 36. Rb8+ {[%emt 0:01:15]} Kh7 {[%emt 0:00:09]} 37. Qc2 {[%emt 0:00:49]} Rg6 {[%emt 0:00:25]} 38. Rb6 {[%emt 0:00:39]} Qa4 {[%emt 0:00:59]} 39. Qxa4 {[%emt 0:00:40]} Rxa4 {[%emt 0:00:04]} 40. Rxg6 {[%emt 0:00:10]} Kxg6 {[%emt 0:00:16]} 41. Rd7 {[%emt 0:00:15]} Ra1+ {[%emt 0:01:12]} 42. Kh2 {[%emt 0:00:07]} Bf6 {[%emt 0:00:07]} 43. Rd6 {[%emt 0:00:36]} Kf5 {[%emt 0:00:36]} 44. c4 {[%emt 0:00:47]} Be5+ {[%emt 0:00:08]} 0-1

[Event "9th Sharjah Cup Women 2018"]
[Site "Sharjah"]
[Date "2018.12.18"]
[Round "7"]
[White "Rouda Essa, Alserkal"]
[Black "Patil, Mitali"]
[Result "1/2-1/2"]
[ECO "B01"]
[WhiteElo "1525"]
[BlackElo "2081"]
[Annotator "NA"]
[PlyCount "98"]
[EventDate "2018.12.14"]
[EventType "swiss"]
[EventCountry "UAE"]
[SourceTitle "playchess.com"]
[Source "ChessBase"]
[SourceQuality "1"]
[TimeControl "5400+30"]

1. e4 {[%emt 0:00:00]} d5 {[%emt 0:00:00]} 2. exd5 {[%emt 0:00:04]} Nf6 {[%emt 0:00:00]} 3. Bb5+ {[%emt 0:00:25]} Bd7 {[%emt 0:00:00]} 4. Be2 {[%emt 0:00:29]} Nxd5 $14 {[%emt 0:00:34] LiveBook: 377 Games} 5. d4 {[%emt 0:00:21]} Bf5 {[%emt 0:00:14]} 6. Nf3 {[%emt 0:00:24]} e6 {[%emt 0:00:08]} 7. O-O {[%emt 0:00:33]} Be7 {[%emt 0:00:08]} 8. a3 {[%emt 0:01:00]} O-O {[%emt 0:00:46]} 9. c4 {[%emt 0:00:23]} Nf6 {[%emt 0:00:05]} 10. Nc3 {[%emt 0:00:14]} Nbd7 {[%emt 0:02:04]} 11. h3 {[%emt 0:01:19]} Ne4 {[%emt 0:01:41]} 12. Be3 {[%emt 0:11:01]} Nxc3 {[%emt 0:09:15]} 13. bxc3 {[%emt 0:00:13]} c5 {[%emt 0:00:44]} 14. Qb3 {[%emt 0:01:06]} Qc7 {[%emt 0:02:46]} 15. Rad1 {[%emt 0:08:27]} Rfd8 {[%emt 0:03:10]} 16. Nd2 {[%emt 0:32:40]} Rac8 {[%emt 0:01:37]} 17. f4 {[%emt 0:02:10]} Nf6 {[%emt 0:14:15]} 18. Bf3 {[%emt 0:07:43]} b6 {[%emt 0:01:24]} 19. Rc1 {[%emt 0:02:23]} Bd3 {[%emt 0:12:31]} 20. Rfd1 {[%emt 0:01:58]} Bd6 {[%emt 0:00:46]} 21. g3 {[%emt 0:00:54]} h5 {[%emt 0:00:39]} 22. h4 {[%emt 0:06:49]} Ng4 {[%emt 0:03:50]} 23. Bxg4 {[%emt 0:01:23]} hxg4 {[%emt 0:00:02]} 24. Re1 {[%emt 0:00:38]} Qb7 {[%emt 0:05:09]} 25. Bf2 {[%emt 0:01:23]} Be7 {[%emt 0:09:42]} 26. a4 {[%emt 0:04:41]} Rd7 {[%emt 0:02:58]} 27. Qd1 {[%emt 0:01:25]} Bf5 {[%emt 0:11:26]} 28. Qe2 {[%emt 0:02:02]} Qa6 {[%emt 0:02:35]} 29. Qd1 {[%emt 0:01:38]} cxd4 {[%emt 0:03:54]} 30. cxd4 {[%emt 0:00:08]} Ba3 {[%emt 0:00:22]} 31. Ra1 {[%emt 0:00:55]} Bb2 {[%emt 0:00:11]} 32. Ra2 {[%emt 0:00:04]} Bxd4 {[%emt 0:00:21]} 33. Bxd4 {[%emt 0:00:35]} Rxd4 {[%emt 0:00:01]} 34. Qe2 {[%emt 0:00:23]} Rcd8 {[%emt 0:01:05]} 35. Rc1 {[%emt 0:01:58]} Rd3 {[%emt 0:02:06]} 36. Kh2 {[%emt 0:00:47]} Qa5 {[%emt 0:00:30]} 37. Nf1 {[%emt 0:00:48]} R8d4 {[%emt 0:02:43]} 38. Rcc2 {[%emt 0:02:35]} Rf3 {[%emt 0:04:28]} 39. Rd2 {[%emt 0:00:37]} Bd3 {[%emt 0:04:08]} 40. Qd1 {[%emt 0:01:00]} Qc3 {[%emt 0:00:39]} 41. Rf2 {[%emt 0:01:24]} Qxc4 {[%emt 0:00:48]} 42. Rad2 {[%emt 0:00:41]} Rd5 {[%emt 0:00:32]} 43. Rxf3 {[%emt 0:00:33]} gxf3 {[%emt 0:00:27]} 44. Ne3 {[%emt 0:00:29]} Be2 {[%emt 0:00:28]} 45. Qe1 {[%emt 0:00:36]} Rxd2 {[%emt 0:00:36]} 46. Nxc4 {[%emt 0:00:17]} Ra2 {[%emt 0:00:29]} 47. Nd2 {[%emt 0:00:57]} Rxa4 {[%emt 0:00:18]} 48. Qf2 {[%emt 0:00:52]} Ra2 {[%emt 0:00:35]} 49. Nxf3 {[%emt 0:00:22]} Bc4 {[%emt 0:00:14]} 1/2-1/2